bitfinex-derivatives/quotes_SOLF0:USTF0_20241026
["timestamp","ask_amount","ask_price","bid_price","bid_amount"]
[1729938904603,8.13597079,170.24,170.21,5.46890279]
[1729938904812,8.13597079,170.24,170.22,5.46890279]
[1729938905006,8.13597079,170.24,170.2,2.9403]
[1729938905203,8.13597079,170.24,170.21,5.46883093]
[1729938905408,8.13597079,170.24,170.22,5.46883093]
[1729938905605,8.13597079,170.24,170.2,2.9403]
[1729938905805,8.13597079,170.24,170.21,5.47055382]
[1729938906004,8.13597079,170.24,170.22,5.47055382]
[1729938906206,8.13597079,170.24,170.2,2.9403]
[1729938906407,8.13597079,170.24,170.21,5.47077016]
[1729938906603,8.13597079,170.24,170.22,5.47077016]
[1729938906812,8.13597079,170.24,170.2,2.9403]
[1729938907314,8.13597079,170.24,170.21,5.47110271]
[1729938907509,8.13597079,170.24,170.22,5.47110271]
[1729938907714,8.13597079,170.24,170.2,2.9403]
[1729938907916,8.13597079,170.24,170.21,5.47114165]
[1729938908213,8.13597079,170.24,170.22,5.47114165]
[1729938908413,8.13597079,170.24,170.2,2.9403]
[1729938908611,8.13597079,170.24,170.21,5.47117109]
[1729938908805,8.13597079,170.24,170.22,5.47117109]
[1729938909010,8.13597079,170.24,170.2,2.9403]
[1729938909211,8.13597079,170.22,170.21,5.47118895]
[1729938910017,12.57597079,170.22,170.16,7.23307671]
[1729938910219,8.13597079,170.17,170.12,19.8090475]
[1729938910518,8.13597079,170.17,170.14,2.9415]
[1729938910708,8.13597079,170.17,170.15,8.75829173]
[1729938910912,8.13597079,170.17,170.12,15.3690475]
[1729938910913,8.13597079,170.17,170.12,8.13597079]
[1729938911212,11.07707079,170.17,170.13,10.12099367]
[1729938911409,11.07707079,170.17,170.12,11.07777079]
[1729938911613,11.07707079,170.17,170.13,10.11963668]
[1729938911816,8.13597079,170.15,170.09,6.9787]
[1729938912006,8.13597079,170.15,170.1,18.25567642]
[1729938912204,8.13597079,170.15,170.11,10.11970563]
[1729938912409,8.13597079,170.15,170.12,10.11970563]
[1729938912714,8.13597079,170.15,170.13,8.64839682]
[1729938912915,8.13597079,170.15,170.11,8.13597079]
[1729938913117,8.13597079,170.15,170.12,10.11758327]
[1729938913317,8.13597079,170.15,170.13,8.64627984]
[1729938913519,8.13597079,170.15,170.11,11.07787079]
[1729938913716,8.13597079,170.15,170.12,1.4713038]
[1729938913911,8.13597079,170.15,170.13,8.64402009]
[1729938914309,8.13597079,170.15,170.11,11.07787079]
[1729938914723,8.13597079,170.15,170.12,10.11526383]
[1729938915022,8.13597079,170.15,170.11,11.07787079]
[1729938915227,8.13597079,170.15,170.12,10.11380491]
[1729938915520,8.13597079,170.15,170.11,11.07787079]
[1729938915731,7.3809,170.18,170.12,16.77833639]
[1729938915917,8.13597079,170.16,170.12,8.13597079]
[1729938916415,1.3044,170.23,170.13,8.13597079]
[1729938916614,8.13597079,170.2,170.16,11.07707079]
[1729938916808,8.13597079,170.2,170.12,4.44]
[1729938917012,8.13597079,170.19,170.14,8.13597079]
[1729938918015,8.13597079,170.2,170.16,11.07697079]
[1729938918313,1.3044,170.23,170.12,4.44]
[1729938918314,8.13597079,170.23,170.19,8.13597079]
[1729938919212,8.13597079,170.23,170.19,11.07647079]
[1729938921216,7.3793,170.27,170.21,11.07617079]
[1729938921418,8.13597079,170.24,170.18,4.44]
[1729938921618,8.13597079,170.24,170.19,8.13597079]
[1729938922220,8.13597079,170.24,170.2,5.39614136]
[1729938922419,8.13597079,170.24,170.19,8.13597079]
[1729938922622,8.13597079,170.24,170.2,5.39757946]
[1729938922824,8.13597079,170.24,170.19,8.13597079]
[1729938923224,8.13597079,170.24,170.19,11.07657079]
[1729938924625,8.13597079,170.24,170.17,4.44]
[1729938924826,4.44,170.27,170.19,8.13597079]
[1729938925034,8.13597079,170.24,170.19,8.13597079]
[1729938925420,2.9399,170.23,170.19,8.13597079]
[1729938930332,2.9399,170.23,170.2,5.40512991]
[1729938930537,8.13597079,170.22,170.18,2.9408]
[1729938930741,8.13597079,170.22,170.19,5.40533558]
[1729938930938,8.13597079,170.22,170.2,5.40533558]
[1729938931129,8.13597079,170.22,170.18,2.9408]
[1729938931339,8.13597079,170.22,170.19,5.40539487]
[1729938931541,8.13597079,170.22,170.2,5.40539487]
[1729938931742,8.13597079,170.22,170.18,11.07677079]
[1729938932039,8.13597079,170.22,170.19,5.40549629]
[1729938932243,8.13597079,170.22,170.2,5.40549629]
[1729938932536,8.13597079,170.22,170.18,11.07677079]
[1729938932738,8.13597079,170.22,170.19,5.40553728]
[1729938932932,8.13597079,170.21,170.15,4.44]
[1729938933234,11.07637079,170.21,170.16,18.46762881]
[1729938933534,8.13597079,170.21,170.17,14.05560837]
[1729938933841,8.13597079,170.19,170.18,5.40600322]
[1729938934036,8.13597079,170.19,170.16,2.9411]
[1729938934228,8.13597079,170.21,170.17,5.40734693]
[1729938934433,8.13597079,170.21,170.16,2.9411]
[1729938934636,8.13597079,170.21,170.17,5.40725881]
[1729938934941,8.13597079,170.21,170.18,5.40725881]
[1729938935137,8.13597079,170.21,170.16,2.9411]
[1729938935438,11.07627079,170.21,170.17,5.4072081]
[1729938935740,11.07627079,170.21,170.18,5.4072081]
[1729938935941,11.07627079,170.21,170.16,2.9411]
[1729938936241,11.07627079,170.21,170.17,5.40724894]
[1729938936433,11.07627079,170.21,170.16,2.9411]
[1729938936634,11.07627079,170.21,170.17,5.40724518]
[1729938936834,4.44,170.23,170.14,8.13597079]
[1729938936835,11.07667079,170.19,170.14,8.13597079]
[1729938937036,11.07667079,170.19,170.15,14.06071318]
[1729938937235,11.07667079,170.19,170.16,5.40796661]
[1729938937438,11.07667079,170.19,170.17,5.40796661]
[1729938937635,11.07667079,170.19,170.14,11.07747079]
[1729938937841,11.07667079,170.19,170.15,14.05908922]
[1729938938039,11.07667079,170.19,170.14,8.13597079]
[1729938938040,11.07667079,170.19,170.16,5.40734201]
[1729938938242,11.07667079,170.19,170.14,8.13597079]
[1729938938544,11.07667079,170.19,170.15,14.05415402]
[1729938938745,11.07667079,170.19,170.16,5.40544385]
[1729938939043,11.07667079,170.19,170.14,8.13597079]
[1729938939244,11.07667079,170.19,170.15,16.99345859]
[1729938939543,11.07667079,170.19,170.16,5.40467638]
[1729938939738,11.07667079,170.19,170.15,2.9413]
[1729938940039,11.07667079,170.19,170.16,5.40508531]
[1729938940242,11.07667079,170.19,170.15,2.9413]
[1729938940437,11.07667079,170.19,170.16,5.40502316]
[1729938940638,11.07667079,170.19,170.15,2.9413]
[1729938940838,11.07667079,170.19,170.16,5.40539119]
[1729938941038,11.07667079,170.19,170.15,2.9413]
[1729938941241,11.07667079,170.19,170.16,5.40535068]
[1729938941550,8.13597079,170.18,170.15,2.9413]
[1729938941845,8.13597079,170.18,170.16,5.40522047]
[1729938942039,8.13597079,170.18,170.15,2.9413]
[1729938942241,8.13597079,170.18,170.16,5.40540684]
[1729938942440,8.13597079,170.18,170.15,2.9413]
[1729938942640,8.13597079,170.18,170.16,5.40525161]
[1729938942845,8.13597079,170.18,170.15,2.9413]
[1729938943142,8.13597079,170.18,170.16,5.40525412]
[1729938943341,8.13597079,170.18,170.15,2.9413]
[1729938943546,8.13597079,170.18,170.16,5.40530358]
[1729938943749,8.13597079,170.18,170.14,11.07747079]
[1729938943943,8.13597079,170.18,170.15,5.40630513]
[1729938944248,8.13597079,170.18,170.16,5.40630513]
[1729938944442,8.13597079,170.18,170.14,11.07747079]
[1729938944648,8.13597079,170.18,170.15,5.40653497]
[1729938944851,8.13597079,170.18,170.14,11.07747079]
[1729938945044,8.13597079,170.18,170.15,5.40711859]
[1729938945245,8.13597079,170.18,170.14,11.07747079]
[1729938945651,8.13597079,170.18,170.15,5.40733701]
[1729938945857,8.13597079,170.18,170.14,11.07747079]
[1729938946146,8.13597079,170.18,170.15,5.40751237]
[1729938946342,8.13597079,170.16,170.12,2.9417]
[1729938946543,4.44,170.19,170.12,2.9417]
[1729938946544,8.13597079,170.15,170.13,5.40907521]
[1729938946746,8.13597079,170.15,170.14,5.40907521]
[1729938947448,8.13597079,170.15,170.12,2.9417]
[1729938947642,8.13597079,170.15,170.13,5.40929776]
[1729938947950,8.13597079,170.15,170.12,2.9417]
[1729938948144,8.13597079,170.15,170.13,5.40929832]
[1729938948344,8.13597079,170.15,170.12,2.9417]
[1729938948645,8.13597079,170.15,170.13,5.40909537]
[1729938948835,8.13597079,170.15,170.12,2.9417]
[1729938949040,8.13597079,170.13,170.09,2.9423]
[1729938949242,2.9415,170.14,170.06,8.13597079]
[1729938949243,8.13597079,170.11,170.06,8.13597079]
[1729938949437,8.13597079,170.11,170.07,14.06632358]
[1729938949648,8.13597079,170.11,170.08,15.53772482]
[1729938949849,8.13597079,170.11,170.09,18.47992482]
[1729938950040,8.13597079,170.11,170.1,14.06632358]
[1729938950440,8.13597079,170.11,170.1,17.00852358]
[1729938950643,8.13597079,170.12,170.1,18.47993054]
[1729938950844,8.13597079,170.12,170.11,5.41012445]
[1729938952450,8.13597079,170.12,170.07,2.9427]
[1729938952642,8.13597079,170.11,170.08,8.65783042]
[1729938952848,8.13597079,170.11,170.09,5.41114401]
[1729938953152,8.13597079,170.11,170.1,5.41114401]
[1729938953447,8.13597079,170.11,170.07,2.9427]
[1729938953647,8.13597079,170.11,170.08,5.41000776]
[1729938953847,11.07797079,170.11,170.06,11.07887079]
[1729938954046,11.07797079,170.11,170.07,14.06763652]
[1729938954251,11.07797079,170.11,170.08,5.41062943]
[1729938954453,11.07797079,170.11,170.06,11.07887079]
[1729938954748,11.07797079,170.11,170.07,14.0639312]
[1729938954949,11.07797079,170.11,170.08,5.40920431]
[1729938955249,11.07797079,170.11,170.06,11.07887079]
[1729938955449,11.07797079,170.11,170.07,5.40815507]
[1729938955645,8.13597079,170.1,170.08,5.40815507]
[1729938955851,8.13597079,170.1,170.06,2.9429]
[1729938956046,8.13597079,170.1,170.07,5.4081141]
[1729938956240,8.13597079,170.1,170.08,5.4081141]
[1729938956444,8.13597079,170.1,170.06,2.9429]
[1729938956645,8.13597079,170.1,170.07,5.40686943]
[1729938956850,8.13597079,170.1,170.06,2.9429]
[1729938957045,8.13597079,170.1,170.07,5.40703767]
[1729938957250,8.13597079,170.1,170.06,2.9429]
[1729938957555,8.13597079,170.1,170.07,5.40748749]
[1729938957752,8.13597079,170.1,170.06,2.9429]
[1729938957965,8.13597079,170.1,170.07,5.40617716]
[1729938958262,8.13597079,170.1,170.06,2.9429]
[1729938958468,8.13597079,170.1,170.07,5.40513198]
[1729938958662,8.13597079,170.1,170.06,2.9429]
[1729938958855,8.13597079,170.1,170.07,5.40520132]
[1729938959057,8.13597079,170.1,170.05,2.9431]
[1729938959058,11.07817079,170.1,170.05,2.9431]
[1729938959252,4.44,170.11,169.98,1.2097]
[1729938959253,8.13597079,170.06,169.98,1.2097]
[1729938959469,8.13597079,170.06,170.0,8.13597079]
[1729938959760,8.13597079,170.06,170.01,15.52673789]
[1729938959963,8.13597079,170.06,170.02,15.52673789]
[1729938960166,8.13597079,170.06,170.03,5.40571423]
[1729938960360,8.13597079,170.06,170.02,2.9435]
[1729938960563,8.13597079,170.06,170.03,5.40656466]
[1729938960758,8.13597079,170.06,170.02,2.9435]
[1729938961164,8.13597079,170.06,170.03,5.40658698]
[1729938961365,8.13597079,170.06,170.02,2.9435]
[1729938961564,8.13597079,170.06,170.03,5.40612935]
[1729938961758,8.13597079,170.06,170.02,2.9435]
[1729938961970,8.13597079,170.06,170.03,5.40608234]
[1729938962156,8.13597079,170.04,169.88,57.18]
[1729938962363,8.13597079,170.0,169.95,8.13597079]
[1729938962665,8.13597079,170.0,169.96,15.52991518]
[1729938962870,8.13597079,170.0,169.97,15.52991518]
[1729938963055,8.13597079,170.0,169.97,5.40681521]
[1729938963462,2.90235821,170.05,169.97,5.40681521]
[1729938963663,4.44,170.04,170.01,8.13597079]
[1729938963868,4.44,170.04,169.93,1.3061]
[1729938964069,4.44,170.04,170.0,2.9439]
[1729938964070,12.57597079,170.04,170.0,2.9439]
[1729938964668,8.13597079,170.03,169.95,1.2125]
[1729938964971,8.13597079,170.0,169.97,2.9444]
[1729938965874,8.13597079,170.0,169.95,9.34847079]
[1729938966065,8.13597079,170.0,169.96,5.40566989]
[1729938966259,8.13597079,170.0,169.95,9.34847079]
[1729938966462,8.13597079,170.0,169.96,5.40198936]
[1729938966665,8.13597079,170.0,169.95,9.34847079]
[1729938966957,8.13597079,170.0,169.96,8.34508418]
[1729938967271,8.13597079,169.99,169.94,8.13597079]
[1729938967463,8.13597079,169.98,169.95,2.9447]
[1729938969161,4.44,170.0,169.95,2.9447]
[1729938969368,8.13597079,169.99,169.95,2.9447]
[1729938970771,8.13597079,169.98,169.95,2.9447]
[1729938971368,4.44,170.0,169.95,2.9447]
[1729938971369,8.13597079,169.96,169.95,2.9447]
[1729938974173,8.13597079,169.96,169.93,1.3061]
[1729938974174,4.44,170.0,169.93,9.44207079]
[1729938974368,8.13597079,169.98,169.93,9.44207079]
[1729938975273,8.13597079,169.98,169.95,2.9446]
[1729938976084,2.4417,170.03,169.99,2.9441]
[1729938976271,8.13597079,170.0,169.94,8.13597079]
[1729938976574,8.13597079,170.0,169.95,2.9446]
[1729938976770,8.13597079,170.0,169.94,8.13597079]
[1729938978378,8.13597079,169.98,169.96,2.9445]
[1729938979071,4.44,170.01,169.96,2.9445]
[1729938979072,8.13597079,169.97,169.96,2.9445]
[1729938981573,8.13597079,169.99,169.96,2.9445]
[1729938982480,2.9431,170.05,170.0,2.9439]
[1729938982679,8.13597079,170.03,169.98,8.13597079]
[1729938983571,8.13597079,170.03,170.0,2.9438]
[1729938984884,8.13597079,170.03,170.01,2.9437]
[1729938985379,8.13597079,170.02,170.0,2.9439]
[1729938986679,8.13597079,170.02,169.96,1.2105]
[1729938986680,4.44,170.05,169.92,8.56861439]
[1729938986879,8.13597079,169.98,169.94,8.13597079]
[1729938987578,8.13597079,169.98,169.95,2.9448]
[1729938987785,7.3838,170.01,169.92,9.42337079]
[1729938987975,8.13597079,169.97,169.92,9.42337079]
[1729938988174,8.13597079,169.96,169.94,2.9449]
[1729938988578,8.13597079,169.96,169.78,20.5785776]
[1729938988885,8.13597079,169.92,169.91,2.9455]
[1729938990185,8.13597079,169.92,169.87,5.3594979]
[1729938990382,8.13597079,169.88,169.87,2.9462]
[1729938991283,8.13597079,169.88,169.84,2.9466]
[1729938991480,8.13597079,169.86,169.84,2.9466]
[1729938993486,8.13597079,169.86,169.83,2.9469]
[1729938994185,7.3859,169.89,169.64,229.6819333]
[1729938994186,8.13597079,169.84,169.64,229.6819333]
[1729938994493,8.13597079,169.81,169.75,2.4254]
[1729938994681,8.13597079,169.82,169.77,8.13597079]
[1729938995080,8.13597079,169.82,169.76,1.2153]
[1729938995288,8.13597079,169.82,169.78,8.13597079]
[1729938995875,8.13597079,169.82,169.81,2.9472]
[1729938996583,8.13597079,169.82,169.77,8.13597079]
[1729938998287,4.44,169.85,169.8,2.9473]
[1729938998490,4.44,169.87,169.8,8.13597079]
[1729938998688,12.57597079,169.87,169.82,8.13597079]
[1729938999290,8.13597079,169.86,169.82,8.13597079]
[1729938999893,4.44,169.87,169.85,2.9465]
[1729939000095,8.13597079,169.87,169.85,2.9465]
[1729939001384,8.13597079,169.88,169.83,8.13597079]
[1729939001587,567.92471,169.91,169.87,2.946]
[1729939001588,12.57597079,169.9,169.87,2.946]
[1729939002985,4.44,169.9,169.87,2.946]
[1729939003188,8.13597079,169.9,169.88,2.9458]
[1729939003389,8.13597079,169.9,169.85,8.13597079]
[1729939003883,8.13597079,169.9,169.88,2.9458]
[1729939004892,8.13597079,169.9,169.83,3.6961]
[1729939004893,567.92471,169.91,169.87,8.13597079]
[1729939005093,567.92471,169.91,169.9,2.9457]
[1729939005490,576.06068079,169.91,169.9,2.9457]
[1729939005800,576.06068079,169.91,169.87,8.13597079]
[1729939006003,576.06068079,169.91,169.86,4.44]
[1729939007395,576.06068079,169.91,169.88,2.9458]
[1729939007594,8.13597079,169.9,169.88,2.9458]
[1729939008693,8.13597079,169.9,169.86,4.44]
[1729939008911,8.13597079,169.9,169.86,12.57597079]
[1729939009093,576.06068079,169.91,169.86,12.57597079]
[1729939009601,567.92471,169.91,169.86,12.57597079]
[1729939009798,567.92471,169.91,169.87,8.13597079]
[1729939011304,567.92471,169.91,169.89,2.9458]
[1729939012195,576.06068079,169.91,169.89,2.9458]
[1729939012604,8.13597079,169.9,169.87,2.9462]
[1729939015499,8.13597079,169.89,169.84,2.9466]
[1729939015700,572.36471,169.91,169.7,80.798]
[1729939015701,8.13597079,169.86,169.77,9.14442058]
[1729939015896,8.13597079,169.83,169.79,8.13597079]
[1729939016100,8.13597079,169.83,169.81,2.9471]
[1729939017103,4.44,169.87,169.83,2.9468]
[1729939017305,8.13597079,169.85,169.83,2.9468]
[1729939017515,8.13597079,169.85,169.8,8.13597079]
[1729939018010,8.13597079,169.85,169.83,2.9469]
[1729939018610,8.13597079,169.85,169.78,4.44]
[1729939018813,8.13597079,169.85,169.82,2.947]
[1729939019509,8.13597079,169.83,169.74,8.60942212]
[1729939019708,8.13597079,169.79,169.74,8.13597079]
[1729939021218,8.13597079,169.79,169.75,2.9483]
[1729939021624,8.13597079,169.79,169.72,5.38645324]
[1729939021823,8.13597079,169.78,169.73,8.13597079]
[1729939022318,4.44,169.8,169.7,5.38645324]
[1729939022319,17.18675173,169.8,169.7,5.38645324]
[1729939022723,12.74675173,169.77,169.69,5.38645324]
[1729939022917,4.44,169.76,169.69,5.38645324]
[1729939023519,4.44,169.76,169.71,2.9489]
[1729939023818,4.44,169.76,169.68,5.7087]
[1729939024022,4.44,169.76,169.71,2.9489]
[1729939024218,1.2629,169.79,169.69,5.39496089]
[1729939024424,4.44,169.78,169.71,12.74675173]
[1729939025320,4.44,169.78,169.74,2.9483]
[1729939025522,12.74675173,169.82,169.71,12.74675173]
[1729939025719,2.4515,169.84,169.74,12.74675173]
[1729939025720,4.44,169.81,169.74,12.74675173]
[1729939026722,4.44,169.81,169.76,2.9479]
[1729939027628,4.44,169.8,169.76,2.9479]
[1729939028526,4.44,169.8,169.74,12.74675173]
[1729939028728,4.44,169.8,169.77,2.9478]
[1729939030225,4.44,169.81,169.77,2.9478]
[1729939032431,21.66178955,170.14,169.87,2.9462]
[1729939032731,14.04465173,169.97,169.87,17.48675173]
[1729939032926,14.04465173,169.97,169.9,2.9457]
[1729939033129,1.2979,169.97,169.9,2.9457]
[1729939033630,564.7891622,169.91,169.9,2.9457]
[1729939033835,465.82624337,169.91,169.9,2.9457]
[1729939034130,465.37844337,169.91,169.9,2.9457]
[1729939035629,434.11332114,169.91,169.9,8.32779408]
[1729939036334,377.05852454,169.91,169.9,8.32779408]
[1729939037338,377.05852454,169.91,169.9,2.9457]
[1729939037538,377.05852454,169.91,169.9,8.3286945]
[1729939037733,377.05852454,169.91,169.9,8.32856019]
[1729939038826,377.05852454,169.91,169.9,13.06856019]
[1729939039030,377.05852454,169.91,169.9,7.6857]
[1729939041533,377.05852454,169.91,169.87,2.9461]
[1729939042426,377.05852454,169.91,169.86,4.74]
[1729939042632,377.05852454,169.91,169.88,2.9459]
[1729939045734,377.05852454,169.91,169.86,4.74]
[1729939046040,377.05852454,169.91,169.86,7.6862]
[1729939047037,12.74675173,169.9,169.84,2.9467]
[1729939047433,377.05852454,169.91,169.85,12.74675173]
[1729939047635,2.3923,170.07,169.89,12.74675173]
[1729939047834,1.1856,170.07,169.98,12.74675173]
[1729939048036,1.2067,170.06,169.98,12.74675173]
[1729939048834,1.2067,170.06,170.01,2.9436]
[1729939049039,1.2067,170.06,170.0,17.82675173]
[1729939050833,1.2067,170.06,170.0,8.0238]
[1729939053538,1.2067,170.06,169.98,2.9442]
[1729939053539,16.89635173,170.06,169.98,2.9442]
[1729939053843,13.95345173,170.06,169.98,2.9442]
[1729939054043,13.95345173,170.06,169.99,2.9441]
[1729939054434,12.74675173,170.04,169.96,5.08]
[1729939054843,12.74675173,170.04,169.94,12.74675173]
[1729939055044,12.74675173,170.02,169.94,5.08]
[1729939055353,1.228,170.01,169.94,5.08]
[1729939055845,1.228,170.01,169.96,2.9446]
[1729939056234,1.228,170.01,169.95,2.9447]
[1729939056437,12.74675173,170.0,169.92,5.08]
[1729939056846,1.2632,169.99,169.93,2.9451]
[1729939057241,6.3432,169.99,169.93,2.9451]
[1729939057947,12.74675173,169.98,169.92,2.9453]
[1729939058145,12.74675173,169.98,169.89,5.08]
[1729939058342,1.1854,169.97,169.89,5.08]
[1729939059250,1.1854,169.97,169.91,2.9454]
[1729939062151,1.1854,169.97,169.89,5.08]
[1729939062361,1.1854,169.97,169.91,2.9455]
[1729939062744,1.1854,169.97,169.89,5.08]
[1729939064040,1.1854,169.97,169.9,5.38954194]
[1729939064240,1.1854,169.97,169.9,20.37772095]
[1729939064745,1.1854,169.97,169.89,5.08]
[1729939064948,1.1854,169.97,169.9,5.38984602]
[1729939065253,1.1854,169.97,169.89,5.08]
[1729939065756,1.1854,169.97,169.92,2.9452]
[1729939069947,1.1854,169.97,169.86,62.32]
[1729939070151,20.37772095,169.95,169.87,5.39413635]
[1729939070348,20.37772095,169.95,169.86,5.08]
[1729939070544,2.9451,169.94,169.87,2.9461]
[1729939070950,2.9451,169.94,169.85,5.08]
[1729939071151,20.37772095,169.95,169.86,5.39674824]
[1729939071454,5.08,169.96,169.87,5.39581917]
[1729939071646,5.08,169.96,169.85,13.71331067]
[1729939071843,5.08,169.96,169.86,5.39582573]
[1729939072146,5.08,169.96,169.87,5.39582573]
[1729939072343,5.08,169.96,169.85,13.71331067]
[1729939072542,5.08,169.96,169.86,5.39592589]
[1729939072747,5.08,169.96,169.87,5.39592589]
[1729939072952,5.08,169.96,169.85,13.71331067]
[1729939073151,5.08,169.96,169.86,5.3957418]
[1729939073456,5.08,169.96,169.9,2.9456]
[1729939074361,8.0247,169.96,169.89,2.9458]
[1729939075855,2.945,169.94,169.88,2.946]
[1729939078061,2.945,169.94,169.87,2.9462]
[1729939078255,1.2195,169.93,169.87,2.9462]
[1729939078755,1.1889,169.92,169.87,2.9462]
[1729939080664,1.1889,169.92,169.86,2.9463]
[1729939080965,6.4089,169.92,169.86,2.9463]
[1729939081154,6.4089,169.92,169.83,17.94649215]
[1729939081355,6.4089,169.92,169.83,12.72649215]
[1729939082162,9.3542,169.92,169.85,2.9465]
[1729939082655,12.72649215,169.91,169.85,2.9465]
[1729939087962,12.72649215,169.91,169.76,2.99693011]
[1729939088265,1.2292,169.9,169.79,12.72649215]
[1729939088866,1.2292,169.9,169.84,2.9467]
[1729939089667,4.1749,169.9,169.84,2.9467]
[1729939092762,1.2292,169.9,169.84,12.72649215]
[1729939093563,1.1889,169.92,169.86,12.72649215]
[1729939094171,1.1889,169.92,169.87,2.9462]
[1729939094374,1.1889,169.92,169.84,17.94649215]
[1729939095065,1.1889,169.92,169.86,12.72649215]
[1729939096265,1.1889,169.92,169.88,2.9458]
[1729939097270,1.1889,169.92,169.86,12.72649215]
[1729939097459,1.1889,169.92,169.87,5.40556156]
[1729939097665,1.1889,169.92,169.86,12.72649215]
[1729939097865,1.1889,169.92,169.87,5.40556525]
[1729939098066,1.1889,169.92,169.86,12.72649215]
[1729939098265,1.1889,169.92,169.87,5.40763722]
[1729939098471,1.1889,169.92,169.85,8.65221963]
[1729939098771,1.1889,169.92,169.86,5.40855839]
[1729939098968,1.1889,169.92,169.85,8.65221963]
[1729939099168,1.1889,169.92,169.86,5.40855439]
[1729939099369,1.1889,169.92,169.88,2.9459]
[1729939100368,1.1889,169.92,169.86,2.9463]
[1729939100564,1.1889,169.92,169.84,12.72649215]
[1729939100769,1.1889,169.92,169.85,5.41490774]
[1729939101070,1.1889,169.92,169.86,5.41490774]
[1729939101273,4.1342,169.92,169.87,5.41490774]
[1729939101469,4.1342,169.92,169.85,2.9464]
[1729939101672,4.1342,169.92,169.86,5.41834573]
[1729939101871,4.1342,169.92,169.85,2.9464]
[1729939102176,5.22,169.91,169.86,5.41834573]
[1729939102483,5.22,169.91,169.85,2.9464]
[1729939102678,5.22,169.91,169.86,5.41812908]
[1729939102869,5.22,169.91,169.85,2.9464]
[1729939102870,5.22,169.91,169.87,5.41812908]
[1729939103175,17.94649215,169.91,169.85,2.9464]
[1729939103376,17.94649215,169.91,169.86,5.41826114]
[1729939103569,17.94649215,169.91,169.85,2.9464]
[1729939103869,17.94649215,169.91,169.86,5.41852379]
[1729939104075,17.94649215,169.91,169.85,2.9464]
[1729939104275,2.9457,169.9,169.84,2.9467]
[1729939104577,1.2954,169.9,169.85,5.4182361]
[1729939104877,1.2954,169.9,169.84,2.9467]
[1729939105075,1.2954,169.9,169.85,5.41859472]
[1729939105374,1.2954,169.9,169.84,2.9467]
[1729939105675,1.2954,169.9,169.85,5.41870493]
[1729939105874,1.2954,169.9,169.84,2.9467]
[1729939106079,1.2954,169.9,169.85,5.41763952]
[1729939106266,2.9461,169.88,169.81,2.9471]
[1729939106467,12.72649215,169.86,169.82,5.41923993]
[1729939106673,12.72649215,169.86,169.83,5.41923993]
[1729939106872,12.72649215,169.84,169.78,8.67204304]
[1729939107079,12.72649215,169.84,169.79,14.09294466]
[1729939107269,12.72649215,169.84,169.8,5.42090162]
[1729939107470,12.72649215,169.84,169.76,5.22]
[1729939107676,12.72649215,169.84,169.77,2.9478]
[1729939107872,12.72649215,169.84,169.78,5.42100419]
[1729939108077,12.72649215,169.84,169.79,5.42100419]
[1729939108372,12.72649215,169.84,169.8,5.42100419]
[1729939108573,12.72649215,169.84,169.78,8.67180738]
[1729939108773,12.72649215,169.84,169.79,5.41970252]
[1729939108980,15.67319215,169.84,169.8,5.41970252]
[1729939109172,15.67319215,169.84,169.78,2.9477]
[1729939109370,15.67319215,169.84,169.79,5.41864976]
[1729939109683,12.72649215,169.84,169.8,5.41864976]
[1729939109979,12.72649215,169.84,169.78,2.9477]
[1729939110277,12.72649215,169.84,169.79,5.41905479]
[1729939110577,12.72649215,169.84,169.78,2.9477]
[1729939110777,12.72649215,169.84,169.79,5.41866747]
[1729939110976,12.72649215,169.84,169.78,2.9477]
[1729939111169,1.2007,169.83,169.78,2.9477]
[1729939111676,6.3807,169.83,169.78,2.9477]
[1729939111874,12.72649215,169.82,169.77,2.9479]
[1729939112071,12.72649215,169.82,169.78,5.41808856]
[1729939112274,12.72649215,169.82,169.77,2.9479]
[1729939112674,15.67349215,169.82,169.76,2.9481]
[1729939112874,12.72649215,169.79,169.77,5.4168975]
[1729939113077,12.72649215,169.79,169.7,13.85017786]
[1729939113278,12.72649215,169.79,169.71,14.08942423]
[1729939113479,12.72649215,169.79,169.72,14.08942423]
[1729939113676,12.72649215,169.79,169.73,14.08942423]
[1729939113876,12.72649215,169.79,169.74,5.41924637]
[1729939114079,12.72649215,169.79,169.72,8.67017786]
[1729939114272,12.72649215,169.79,169.74,2.9484]
[1729939114480,17.90649215,169.79,169.71,8.66323871]
[1729939114672,12.72649215,169.77,169.72,5.41574794]